fUST/lending_fUST_20250509
["ID","MTS","AMOUNT","RATE_DAILY","PERIOD"]
[360363438,1746768647633,-447.63006842,0.00010958,2]
[360363440,1746768647643,-225.61659925,0.00010958,2]
[360363442,1746768647652,-400.0,0.00010958,2]
[360363444,1746768647662,-400.0,0.00010958,2]
[360363446,1746768647673,-400.0,0.00010958,2]
[360363447,1746768647683,-400.0,0.00010958,2]
[360363449,1746768647693,-150.64594648,0.00010958,2]
[360363451,1746768647702,-403.95507197,0.00010958,2]
[360363453,1746768647711,-231.53940083,0.00010958,2]
[360363456,1746768647722,-200.00000001,0.00010958,2]
[360363457,1746768647732,-400.0,0.00010958,2]
[360363459,1746768647742,-400.0,0.00010958,2]
[360363462,1746768647752,-400.0,0.00010958,2]
[360363463,1746768647764,-234.805077,0.00010959,2]
[360363465,1746768647774,-234.805077,0.00010959,2]
[360363468,1746768647784,-234.805077,0.00010959,2]
[360363470,1746768647794,-234.805077,0.00010959,2]
[360363472,1746768647803,-234.805077,0.00010959,2]
[360363473,1746768647814,-179.256198,0.00010959,2]
[360363476,1746768647825,-179.256198,0.00010959,2]
[360363478,1746768647834,-234.805077,0.00010959,2]
[360363480,1746768647844,-234.805077,0.00010959,2]
[360363482,1746768647855,-432.65365826,0.00011,2]
[360363484,1746768647864,-2152.4291669,0.00011175,2]
[360363485,1746768647874,-179.256198,0.00011232,2]
[360363488,1746768647883,-179.256198,0.00011232,2]
[360363489,1746768647892,-179.256198,0.00011232,2]
[360363491,1746768647902,-179.256198,0.00011232,2]
[360363493,1746768647911,-179.256198,0.00011232,2]
[360363496,1746768647921,-179.256198,0.00011232,2]
[360363498,1746768647933,-234.805077,0.00011232,2]
[360363500,1746768647944,-234.805077,0.00011232,2]
[360363502,1746768647953,-234.805077,0.00011232,2]
[360363504,1746768647963,-234.805077,0.00011232,2]
[360363506,1746768647972,-400.0,0.00011232,2]
[360363508,1746768647982,-400.0,0.00011232,2]
[360363510,1746768647992,-358.71310454,0.00011232,2]
[360363512,1746768648001,-503.51819532,0.00011232,2]
[360363514,1746768648012,-307.94994042,0.00011232,2]
[360363516,1746768648022,-400.0,0.00011232,2]
[360363518,1746768648032,-402.11401837,0.00011232,2]
[360363520,1746768648041,-1275.5,0.00011232,2]
[360363522,1746768648051,-313.99541802,0.00011232,2]
[360363524,1746768648060,-400.0,0.00011232,2]
[360363526,1746768648069,-462.49,0.00011232,2]
[360363528,1746768648079,-400.0,0.00011232,2]
[360363530,1746768648088,-400.0,0.00011232,2]
[360363532,1746768648098,-400.0,0.00011232,2]
[360363534,1746768648107,-412.63426374,0.00011232,2]
[360363536,1746768648116,-400.0,0.00011232,2]
[360363538,1746768648126,-400.0,0.00011232,2]
[360363540,1746768648136,-400.0,0.00011232,2]
[360363542,1746768648145,-400.0,0.00011232,2]
[360363544,1746768648155,-400.0,0.00011232,2]
[360363546,1746768648164,-400.0,0.00011232,2]
[360363548,1746768648173,-400.0,0.00011232,2]
[360363550,1746768648183,-400.0,0.00011232,2]
[360363552,1746768648193,-400.0,0.00011232,2]
[360363554,1746768648204,-501.66,0.00011232,2]
[360363556,1746768648215,-400.0,0.00011232,2]
[360363558,1746768648225,-400.0,0.00011232,2]
[360363560,1746768648235,-400.0,0.00011232,2]
[360363562,1746768648244,-400.0,0.00011232,2]
[360363564,1746768648254,-400.0,0.00011232,2]
[360363567,1746768648263,-400.0,0.00011232,2]
[360363569,1746768648273,-539.0848501,0.00011232,2]
[360363571,1746768648282,-400.0,0.00011232,2]
[360363573,1746768648291,-525.09798428,0.00011232,2]
[360363575,1746768648301,-400.0,0.00011232,2]
[360363577,1746768648310,-400.0,0.00011232,2]
[360363579,1746768648320,-400.0,0.00011232,2]
[360363581,1746768648330,-654.91,0.00011232,2]
[360363583,1746768648339,-400.0,0.00011232,2]
[360363585,1746768648348,-400.0,0.00011232,2]
[360363587,1746768648358,-468.53378978,0.00011232,2]
[360363589,1746768648367,-1556.13,0.00011232,2]
[360363591,1746768648377,-507.19,0.00011232,2]
[360363593,1746768648386,-459.30959148,0.00011232,2]
[360363595,1746768648396,-400.0,0.00011232,2]
[360363597,1746768648405,-400.0,0.00011232,2]
[360363599,1746768648415,-662.62,0.00011232,2]
[360363601,1746768648424,-400.0,0.00011232,2]
[360363603,1746768648433,-400.0,0.00011232,2]
[360363605,1746768648443,-400.0,0.00011232,2]
[360363607,1746768648453,-400.0,0.00011232,2]
[360363609,1746768648462,-400.0,0.00011232,2]
[360363611,1746768648472,-104.49249763,0.00011232,2]
[360363613,1746768648486,-295.50750237,0.00011232,2]
[360363615,1746768648496,-400.0,0.00011232,2]
[360363617,1746768648505,-400.0,0.00011232,2]
[360363619,1746768648515,-400.0,0.00011232,2]
[360363621,1746768648524,-400.0,0.00011232,2]
[360363623,1746768648534,-400.0,0.00011232,2]
[360363625,1746768648544,-400.0,0.00011232,2]
[360363627,1746768648553,-400.0,0.00011232,2]
[360363629,1746768648563,-173.11379998,0.00011267,2]
[360363631,1746768648572,-234.805077,0.00011273,2]
[360363633,1746768648582,-234.805077,0.00011273,2]
[360363636,1746768648592,-1146.6796556,0.000113,2]
[360363638,1746768648602,-379.595,0.00011503,2]
[360363639,1746768648611,-321.63689,0.00011506,2]
[360363642,1746768648621,-321.63689,0.00011506,2]
[360363644,1746768648631,-179.256198,0.00011506,2]
[360363646,1746768648640,-179.256198,0.00011506,2]
[360363648,1746768648650,-234.805077,0.00011506,2]
[360363650,1746768648660,-234.805077,0.00011506,2]
[360363652,1746768648670,-400.0,0.00011506,2]
[360363654,1746768648681,-400.0,0.00011506,2]
[360363656,1746768648691,-400.0,0.00011506,2]
[360363658,1746768648700,-1275.5,0.00011506,2]
[360363660,1746768648711,-400.0,0.00011506,2]
[360363662,1746768648721,-462.49,0.00011506,2]
[360363664,1746768648730,-214.4337427,0.00011506,2]
[360363667,1746768648750,-185.5662573,0.00011506,2]
[360363669,1746768648760,-400.0,0.00011506,2]
[360363671,1746768648769,-400.0,0.00011506,2]
[360363673,1746768648781,-40.9537781,0.00011506,2]
[360381234,1746769832410,-404.0,0.00010506,2]
[360381235,1746769832420,-151.0,0.00010951,2]
[360381236,1746769832430,-400.0,0.00010958,2]
[360381237,1746769832439,-396.53,0.00010958,2]
[360381238,1746769832448,-400.0,0.00010958,2]
[360381239,1746769832459,-400.0,0.00010958,2]
[360381240,1746769832469,-202.09408417,0.00010958,2]
[360381241,1746769832479,-400.0,0.00010958,2]
[360381242,1746769832489,-400.0,0.00010958,2]
[360381243,1746769832498,-400.0,0.00010958,2]
[360381244,1746769832507,-400.0,0.00010958,2]
[360381245,1746769832517,-400.0,0.00010958,2]
[360381246,1746769832527,-1116.06,0.00010958,2]
[360381247,1746769832536,-400.0,0.00010958,2]
[360381248,1746769832546,-400.0,0.00010958,2]
[360381249,1746769832556,-766.74,0.00010958,2]
[360381250,1746769832566,-400.0,0.00010958,2]
[360381251,1746769832576,-400.0,0.00010958,2]
[360381252,1746769832585,-400.0,0.00010958,2]
[360381253,1746769832595,-400.0,0.00010958,2]
[360381254,1746769832605,-2007.18,0.00010958,2]
[360381255,1746769832615,-400.0,0.00010958,2]
[360381256,1746769832624,-400.0,0.00010958,2]
[360381257,1746769832634,-400.0,0.00010958,2]
[360381258,1746769832643,-400.0,0.00010958,2]
[360381259,1746769832653,-400.0,0.00010958,2]
[360381260,1746769832664,-419.52429862,0.00010958,2]
[360381261,1746769832673,-600.33,0.00010958,2]
[360381262,1746769832683,-400.0,0.00010958,2]
[360381263,1746769832692,-400.0,0.00010958,2]
[360381264,1746769832702,-319.74935837,0.00010958,2]
[360381265,1746769832712,-1426.46,0.00010958,2]
[360381266,1746769832722,-400.0,0.00010958,2]
[360381267,1746769832732,-400.0,0.00010958,2]
[360381268,1746769832742,-225.1089744,0.00010958,2]
[360381269,1746769832751,-400.0,0.00010958,2]
[360381270,1746769832760,-1057.43,0.00010958,2]
[360381271,1746769832770,-400.0,0.00010958,2]
[360381272,1746769832780,-400.0,0.00010958,2]
[360381273,1746769832790,-400.0,0.00010958,2]
[360381274,1746769832799,-427.41732927,0.00010958,2]
[360381275,1746769832810,-310.05420208,0.00010958,2]
[360381293,1746769838418,-89.94579792,0.00010958,2]
[360381294,1746769838428,-404.68,0.00010958,2]
[360381295,1746769838438,-305.99540523,0.00010958,2]
[360381296,1746769838448,-464.93,0.00010958,2]
[360381297,1746769838457,-370.24106288,0.00010958,2]
[360381298,1746769838467,-400.0,0.00010958,2]
[360381299,1746769838478,-389.7159665,0.00010958,2]
[360381300,1746769838488,-400.0,0.00010958,2]
[360381301,1746769838497,-400.0,0.00010958,2]
[360381302,1746769838507,-400.0,0.00010958,2]
[360381303,1746769838517,-607.41,0.00010958,2]
[360381304,1746769838527,-530.92607655,0.00010958,2]
[360381305,1746769838537,-400.0,0.00010958,2]
[360381306,1746769838546,-400.0,0.00010958,2]
[360381307,1746769838556,-400.0,0.00010958,2]
[360381308,1746769838565,-513.12991174,0.00010958,2]
[360381310,1746769838574,-400.0,0.00010958,2]
[360381312,1746769838584,-151.0,0.00011006,2]
[360381313,1746769838593,-151.0,0.00011061,2]
[360381314,1746769838603,-151.0,0.00011116,2]
[360381315,1746769838612,-245.88758902,0.00011171,2]
[360381316,1746769838622,-500.0,0.00011231,2]
[360381317,1746769838632,-380.37045048,0.00011231,2]
[360381318,1746769838641,-160.88150287,0.00011232,2]
[360381319,1746769838651,-400.0,0.00011232,2]
[360381320,1746769838661,-400.0,0.00011232,2]
[360381321,1746769838671,-31.85293972,0.00011232,2]
[360381322,1746769839819,1200.0,0.00010201,2]
[360381333,1746769840810,-338.67216365,0.00011232,2]
[360381781,1746769845613,-400.0,0.00010958,2]
[360381783,1746769845623,-64.52994615,0.00010958,2]
[360384752,1746770011731,2841.97903272,0.0003,60]
[360384837,1746771032551,-404.0,0.00010506,2]
[360384839,1746771032560,-1069.56,0.00010958,2]
[360384841,1746771032570,-400.0,0.00010958,2]
[360384842,1746771032581,-508.97,0.00010958,2]
[360384843,1746771032591,-400.0,0.00010958,2]
[360384844,1746771032600,-357.07857335,0.00010958,2]
[360384845,1746771032610,-400.0,0.00010958,2]
[360384846,1746771032620,-400.0,0.00010958,2]
[360384848,1746771032629,-400.0,0.00010958,2]
[360384850,1746771032639,-299.38,0.00010958,2]
[360384852,1746771032649,-228.91,0.00010958,2]
[360384854,1746771032658,-400.0,0.00010958,2]
[360384856,1746771032668,-400.0,0.00010958,2]
[360384858,1746771032678,-400.0,0.00010958,2]
[360384860,1746771032687,-612.5,0.00010958,2]
[360384862,1746771032697,-400.0,0.00010958,2]
[360384864,1746771032707,-400.0,0.00010958,2]
[360384866,1746771032716,-400.0,0.00010958,2]
[360384869,1746771032726,-400.0,0.00010958,2]
[360384871,1746771032737,-1367.02,0.00010958,2]
[360384873,1746771032746,-400.0,0.00010958,2]
[360384875,1746771032756,-400.0,0.00010958,2]
[360384877,1746771032766,-400.0,0.00010958,2]
[360384879,1746771032776,-400.0,0.00010958,2]
[360384880,1746771032786,-400.0,0.00010958,2]
[360384882,1746771032795,-1013.37,0.00010958,2]
[360384885,1746771032806,-208.73377546,0.00010958,2]
[360384887,1746771032816,-445.56,0.00010958,2]
[360384888,1746771032826,-424.13,0.00010958,2]
[360384889,1746771032835,-400.0,0.00010958,2]
[360384890,1746771032845,-400.0,0.00010958,2]
[360384892,1746771032855,-400.0,0.00010958,2]
[360384894,1746771032864,-400.0,0.00010958,2]
[360384896,1746771032874,-400.0,0.00010958,2]
[360384898,1746771032886,-400.0,0.00010958,2]
[360384900,1746771032895,-400.0,0.00010958,2]
[360384902,1746771032906,-582.1,0.00010958,2]
[360384904,1746771032915,-400.0,0.00010958,2]
[360384910,1746771033112,-416.12969916,0.00010958,2]
[360384911,1746771033123,-400.0,0.00010958,2]
[360384912,1746771033132,-400.0,0.00010958,2]
[360384913,1746771033142,-400.0,0.00010958,2]
[360384914,1746771033152,-400.0,0.00010958,2]
[360384915,1746771033161,-732.1,0.00010958,2]
[360384916,1746771033171,-400.0,0.00010958,2]
[360384917,1746771033181,-400.0,0.00010958,2]
[360384918,1746771033190,-1923.55,0.00010958,2]
[360384919,1746771033200,-429.76110907,0.00010958,2]
[360384920,1746771033209,-424.43743337,0.00010958,2]
[360384921,1746771033219,-542.42738904,0.00010987,2]
[360384922,1746771033229,-181.07948734,0.00011128,2]
[360384923,1746771033239,-616.25931534,0.00011226,2]
[360384924,1746771033248,-32210.16514977,0.00011227,3]
[360384925,1746771033261,-26327.81874979,0.00011227,3]
[360384926,1746771033271,-25181.5787284,0.00011227,2]
[360384927,1746771033288,-73978.96626916,0.00011227,2]
[360384961,1746771038536,-400.0,0.00010958,2]
[360384963,1746771038546,-33658.30221717,0.00011227,2]
[360384964,1746771038558,-858.20970606,0.00011227,2]
[360385635,1746771046638,-400.0,0.00010958,2]
[360385637,1746771046648,-586.98,0.00010958,2]
[360385639,1746771046659,-400.0,0.00010958,2]
[360385641,1746771046668,-400.0,0.00010958,2]
[360385643,1746771046678,-12827.77596783,0.00011227,2]
[360386142,1746771284586,297.965,0.00010201,2]
[360386159,1746771971042,448.27648861,0.00030137,60]
[360386247,1746772238363,-314.6000005,0.00010605,2]
[360386248,1746772238375,-89.3999995,0.00010605,2]
[360386249,1746772238386,-156.18277155,0.00010858,2]
[360386250,1746772238396,-400.0,0.00010958,2]
[360386251,1746772238405,-400.0,0.00010958,2]
[360386252,1746772238415,-400.0,0.00010958,2]
[360386253,1746772238424,-3014.99005506,0.00010992,2]
[360386254,1746772238434,-500.0,0.00011023,2]
[360386255,1746772238443,-546.38465207,0.00011023,2]
[360386256,1746772238453,-500.0,0.00011023,2]
[360386257,1746772238463,-500.0,0.00011023,2]
[360386258,1746772238473,-500.0,0.00011023,2]
[360386259,1746772238483,-50.62506609,0.00011023,2]
[360386295,1746772238939,-449.37493391,0.00011023,2]
[360386297,1746772238949,-500.0,0.00011023,2]
[360386299,1746772238958,-303.56217532,0.00011023,2]
[360386301,1746772238968,-500.0,0.00011023,2]
[360386303,1746772238979,-500.0,0.00011023,2]
[360386305,1746772238989,-500.0,0.00011023,2]
[360386307,1746772238998,-1390.5542451,0.00011027,2]
[360386309,1746772239008,-602.86021989,0.00011046,2]
[360386310,1746772239017,-270.30075491,0.0001112,2]
[360386311,1746772239027,-400.0,0.00011124,2]
[360386312,1746772239037,-400.0,0.00011124,2]
[360386313,1746772239047,-393.30483252,0.00011124,2]
[360386314,1746772239059,-6.69516748,0.00011124,2]
[360386316,1746772239069,-406.7,0.00011124,2]
[360386318,1746772239079,-400.0,0.00011124,2]
[360386320,1746772239088,-400.0,0.00011124,2]
[360386322,1746772239098,-574.51,0.00011124,2]
[360386324,1746772239108,-400.0,0.00011124,2]
[360386325,1746772239117,-400.0,0.00011124,2]
[360386326,1746772239127,-701.6,0.00011124,2]
[360386327,1746772239139,-337.63554252,0.00011125,2]
[360386328,1746772239152,-62.36445748,0.00011125,2]
[360386329,1746772239162,-400.0,0.00011125,2]
[360386330,1746772239171,-37.63554252,0.00011125,2]
[360386520,1746772241109,-156.67658681,0.00011125,2]
[360386522,1746772241119,-400.0,0.00011125,2]
[360386524,1746772241130,-403.19591314,0.00011125,2]
[360386526,1746772241139,-400.0,0.00011125,2]
[360386528,1746772241148,-400.0,0.00011125,2]
[360386530,1746772241158,-313.28951031,0.00011125,2]
[360386535,1746772241192,-86.71048969,0.00011125,2]
[360386537,1746772241201,-374.67927828,0.00011125,2]
[360386539,1746772241213,-25.32072172,0.00011125,2]
[360386541,1746772241223,-562.52,0.00011125,2]
[360386543,1746772241232,-113.62274507,0.00011125,2]
[360386545,1746772241245,-286.37725493,0.00011125,2]
[360386547,1746772241255,-317.14174507,0.00011125,2]
[360386816,1746772243983,-992.91825493,0.00011125,2]
[360386818,1746772243993,-400.0,0.00011125,2]
[360386820,1746772244002,-400.0,0.00011125,2]
[360386822,1746772244012,-400.0,0.00011125,2]
[360386824,1746772244021,-400.0,0.00011125,2]
[360386826,1746772244031,-232.05407527,0.00011125,2]
[360386828,1746772244040,-387.31503309,0.00011125,2]
[360386830,1746772244049,-260.13058418,0.00011125,2]
[360386832,1746772244059,-431.38152074,0.00011126,2]
[360386834,1746772244068,-1271.40070234,0.00011126,2]
[360386836,1746772244078,-400.0,0.00011126,2]
[360386838,1746772244088,-400.0,0.00011126,2]
[360386840,1746772244097,-1843.4,0.00011126,2]
[360386842,1746772244107,-400.0,0.00011126,2]
[360386844,1746772244117,-971.14,0.00011126,2]
[360386846,1746772244126,-406.46,0.00011126,2]
[360386848,1746772244136,-426.99,0.00011126,2]
[360386850,1746772244145,-400.0,0.00011126,2]
[360386852,1746772244154,-811.45,0.00011126,2]
[360386854,1746772244164,-400.0,0.00011126,2]
[360386856,1746772244173,-212.1195172,0.00011127,3]
[360386858,1746772244182,-52765.61524455,0.00011127,2]
[360386860,1746772244194,-1029.8,0.00011127,2]
[360386863,1746772244213,-773.83,0.00011127,2]
[360387103,1746772246967,-400.0,0.00011124,2]
[360387104,1746772246976,-113151.55012136,0.00011127,2]
[360387105,1746772246986,-29268.99194978,0.00011127,3]
[360387106,1746772246995,-112623.09287528,0.00011127,2]
[360388537,1746773326827,100906.08479185,0.0003,60]
[360388588,1746773438041,-300.0,0.00010586,2]
[360388589,1746773438052,-2020.43145064,0.00010587,2]
[360388590,1746773438066,-2243.299035,0.00010587,2]
[360388591,1746773438090,-531.51398254,0.00010587,2]
[360388605,1746773440487,-14506.6840108,0.00010587,2]
[360388606,1746773440533,-1856.84192456,0.00010587,2]
[360388664,1746773802601,1000.0,0.0003,60]
[360388666,1746773870179,306.41158169,0.0001,3]
[360388753,1746774632186,-785.13011015,0.0001048,2]
[360388789,1746774632699,-444.76270921,0.0001048,2]
[360388790,1746774632709,-500.0,0.00010573,2]
[360388791,1746774632719,-500.0,0.00010573,2]
[360388792,1746774632729,-230.82850968,0.00010573,2]
[360388793,1746774632738,-230.82850968,0.00010578,2]
[360388794,1746774632747,-300.0,0.00010579,2]
[360388795,1746774632758,-300.0,0.00010579,2]
[360388796,1746774632767,-4070.73628917,0.0001058,2]
[360388806,1746774638167,-474.31105081,0.00010579,2]
[360388812,1746774638265,-25.68894919,0.00010579,2]
[360388814,1746774638276,-474.31105081,0.00010579,2]
[360388820,1746774638365,-25.68894919,0.00010579,2]
[360388821,1746774638375,-500.0,0.00010579,2]
[360388822,1746774638384,-500.0,0.00010579,2]
[360388823,1746774638395,-500.0,0.00010579,2]
[360388824,1746774638404,-500.0,0.00010579,2]
[360388825,1746774638414,-500.0,0.00010579,2]
[360388826,1746774638423,-188.62814561,0.00010579,2]
[360389421,1746774646140,-311.37185439,0.00010579,2]
[360389423,1746774646153,-500.0,0.00010579,2]
[360389425,1746774646165,-500.0,0.00010579,2]
[360389428,1746774646176,-500.0,0.00010579,2]
[360389430,1746774646188,-500.0,0.00010579,2]
[360389432,1746774646199,-500.0,0.00010579,2]
[360389434,1746774646209,-500.0,0.00010579,2]
[360389436,1746774646220,-500.0,0.00010579,2]
[360389438,1746774646231,-500.0,0.00010579,2]
[360389441,1746774646242,-500.0,0.00010579,2]
[360389443,1746774646254,-306.35371636,0.00010579,2]
[360389445,1746774646265,-500.0,0.00010579,2]
[360389447,1746774646277,-599.26371083,0.0001058,2]
[360389449,1746774646288,-230.82850968,0.00010584,2]
[360389452,1746774646299,-566.07819966,0.00010586,2]
[360389454,1746774646312,-379.595,0.00010586,2]
[360389456,1746774646323,-2894.83519373,0.00010587,2]
[360396303,1746775832178,-236.49209981,0.00010479,2]
[360396304,1746775832192,-153.88567312,0.00010573,2]
[360396305,1746775832204,-282.24075587,0.00010586,2]
[360396306,1746775832214,-500.0,0.00010586,2]
[360396308,1746775832224,-500.0,0.00010586,2]
[360396309,1746775832236,-500.0,0.00010586,2]
[360396310,1746775832247,-500.0,0.00010586,2]
[360396311,1746775832259,-500.0,0.00010586,2]
[360396312,1746775832270,-500.63537164,0.00010586,2]
[360396313,1746775832281,-500.0,0.00010586,2]
[360396315,1746775832291,-500.0,0.00010586,2]
[360396316,1746775832301,-396.25473976,0.00010586,2]
[360396317,1746775832311,-500.0,0.00010586,2]
[360396318,1746775832321,-500.0,0.00010586,2]
[360396319,1746775832331,-153.88567312,0.00010587,2]
[360396320,1746775832343,-71936.31441788,0.00010587,2]
[360396322,1746775832354,-531.51398254,0.00010587,2]
[360396323,1746775832364,-12077.6654892,0.000106,2]
[360396324,1746775832378,-6253.85439981,0.000106,2]
[360396325,1746775832388,-153.88567312,0.000106,2]
[360396326,1746775832398,-500.0,0.00010673,2]
[360396327,1746775832409,-502.4288027,0.00010673,2]
[360396329,1746775832419,-500.0,0.00010673,2]
[360396330,1746775832432,-500.0,0.00010673,2]
[360396331,1746775832442,-508.80671182,0.00010673,2]
[360396332,1746775832453,-187.73358169,0.00010673,2]
[360396333,1746775832464,-500.0,0.00010673,2]
[360396334,1746775832473,-500.0,0.00010673,2]
[360396336,1746775832484,-506.45140564,0.00010673,2]
[360396337,1746775832495,-503.73552033,0.00010673,2]
[360396338,1746775832506,-500.0,0.00010673,2]
[360396339,1746775832516,-500.0,0.00010673,2]
[360396340,1746775832529,-500.0,0.00010673,2]
[360396341,1746775832540,-500.0,0.00010673,2]
[360396343,1746775832550,-500.0,0.00010673,2]
[360396344,1746775832561,-576.15505988,0.00010673,2]
[360396345,1746775832570,-214.01098202,0.00010673,2]
[360396346,1746775832580,-500.0,0.00010673,2]
[360396347,1746775832592,-500.0,0.00010673,2]
[360396348,1746775832604,-500.0,0.00010673,2]
[360396350,1746775832614,-500.0,0.00010673,2]
[360396351,1746775832624,-500.0,0.00010673,2]
[360396352,1746775832635,-500.0,0.00010673,2]
[360396353,1746775832647,-500.0,0.00010673,2]
[360396354,1746775832659,-500.0,0.00010673,2]
[360396355,1746775832670,-500.0,0.00010673,2]
[360396357,1746775832681,-500.0,0.00010673,2]
[360396358,1746775832691,-21802.26599165,0.00010694,2]
[360396441,1746775838249,-2297.3,0.00010694,2]
[360396442,1746775838263,-2106.266157,0.00010694,2]
[360396497,1746775841134,-2928.86441375,0.00010694,2]
[360396545,1746775843578,-1041.96158257,0.00010694,2]
[360403512,1746776966936,-303.676,0.0001048,2]
[360403513,1746776966959,-300.0,0.00010598,2]
[360403514,1746776966990,-1200.0,0.00010599,2]
[360403515,1746776967027,-500.0,0.00010599,2]
[360403516,1746776967051,-500.0,0.00010599,2]
[360403517,1746776967085,-500.0,0.00010599,2]
[360403518,1746776967114,-500.0,0.00010599,2]
[360403519,1746776967146,-500.0,0.00010599,2]
[360403520,1746776967170,-318.71488951,0.00010599,2]
[360403521,1746776967206,-500.0,0.00010599,2]
[360403522,1746776967239,-500.0,0.00010599,2]
[360403523,1746776967274,-500.0,0.00010599,2]
[360403524,1746776967308,-500.0,0.00010599,2]
[360403525,1746776967338,-400.06353716,0.00010599,2]
[360403526,1746776967363,-8596.0,0.000106,2]
[360403527,1746776967384,-500.0,0.00010673,2]
[360403528,1746776967405,-500.0,0.00010673,2]
[360403529,1746776967427,-503.3393158,0.00010673,2]
[360403530,1746776967449,-500.0,0.00010673,2]
[360403531,1746776967470,-502.57833952,0.00010673,2]
[360403532,1746776967492,-500.0,0.00010673,2]
[360403533,1746776967513,-551.9170859,0.00010673,2]
[360403534,1746776967534,-500.0,0.00010673,2]
[360403535,1746776967779,-500.0,0.00010673,2]
[360403536,1746776967801,-503.76003593,0.00010673,2]
[360403537,1746776967822,-500.0,0.00010673,2]
[360403538,1746776967844,-500.0,0.00010673,2]
[360403539,1746776967869,-500.0,0.00010673,2]
[360403540,1746776967890,-500.0,0.00010673,2]
[360403541,1746776967911,-648.09830733,0.00010673,2]
[360403542,1746776967933,-500.0,0.00010673,2]
[360403543,1746776967955,-500.0,0.00010673,2]
[360403544,1746776967977,-500.0,0.00010673,2]
[360403545,1746776967998,-500.0,0.00010673,2]
[360403546,1746776968019,-500.0,0.00010673,2]
[360403547,1746776968040,-197.56852911,0.00010693,2]
[360403548,1746776968062,-277.37831783,0.00010693,2]
[360403551,1746776980230,-271196.90564191,0.00010694,2]
[360403597,1746777032411,-374.05366051,0.00010673,2]
[360403598,1746777032423,-125.94633949,0.00010673,2]
[360403599,1746777032434,-353.15119644,0.00010673,2]
[360403600,1746777032446,-146.84880356,0.00010673,2]
[360403601,1746777032457,-300.0,0.00010693,2]
[360403602,1746777032468,-300.0,0.00010693,2]
[360403603,1746777032478,-9868.86891925,0.00010694,2]
[360403604,1746777032489,-922.21140982,0.00010694,2]
[360403605,1746777032500,-1367.81349453,0.00010694,2]
[360404729,1746777043717,-433.34039302,0.00010693,2]
[360404731,1746777043727,-103362.87201158,0.00010694,2]
[360404733,1746777043740,-1962.4310974,0.00010694,2]
[360404737,1746777043774,-1941.95456761,0.00010694,2]
[360404745,1746777043835,-5560.50120607,0.00010694,2]
[360405004,1746777047499,-1039.2,0.00010694,2]
[360408482,1746777238752,3788.99,0.00030136,60]
[360408483,1746777247517,386.12036264,0.00010201,2]
[360409097,1746777519719,187.0,0.000301,65]
[360409100,1746777626456,498.0624294,9.729e-05,2]
[360409101,1746777635420,204.5492,0.00027,120]
[360409180,1746778232528,-200.0,0.00010355,2]
[360409182,1746778232539,-361.01946318,0.0001038,2]
[360409184,1746778232551,-638.98053682,0.0001038,2]
[360409186,1746778232560,-519.791162,0.00010486,2]
[360409188,1746778232571,-519.791162,0.00010547,2]
[360409190,1746778232581,-2664.93341494,0.000106,2]
[360409192,1746778232591,-519.791162,0.00010609,2]
[360409193,1746778232600,-151.0,0.0001066,2]
[360409194,1746778232611,-1200.0,0.00010664,2]
[360409195,1746778232621,-300.0,0.00010664,2]